[Event "ETCC Open 2023"]
[Site "Budva"]
[Date "2023.11.14"]
[Round "4.44"]
[White "Balog, Imre"]
[Black "Kjartansson, Gudmundur"]
[Result "1/2-1/2"]
[ECO "D02"]
[WhiteElo "2617"]
[BlackElo "2449"]
[Annotator "ChessBase"]
[PlyCount "188"]
[EventDate "2023.11.10"]
[EventType "team-tourn"]
[EventCountry "MNE"]
[SourceTitle "playchess.com"]
[Source "ChessBase"]
[SourceQuality "1"]
[WhiteTeam "Hungary"]
[BlackTeam "Iceland"]
[WhiteTeamCountry "HUN"]
[BlackTeamCountry "ISL"]
[TimeControl "40/5400+30:1800+30"]

1. d4 {[%emt 0:00:10]} Nf6 {[%emt 0:00:16]} 2. Nf3 {[%emt 0:00:09]} d5 {[%emt 0:00:58]} 3. Bf4 {[%emt 0:00:17]} e6 {[%emt 0:03:40]} 4. e3 {[%emt 0:01:45]} Bd6 {[%emt 0:00:26]} 5. c3 {[%emt 0:01:52]} O-O {[%emt 0:09:00]} 6. Bg3 {[%emt 0:01:23]} c5 {[%emt 0:01:19]} 7. Nbd2 {[%emt 0:01:12]} Qc7 {[%emt 0:01:30]} 8. dxc5 {[%emt 0:03:36]} Qxc5 {[%emt 0:02:50]} 9. Bd3 {[%emt 0:01:13]} Nbd7 {[%emt 0:05:39]} 10. Qe2 {[%emt 0:03:57]} e5 {[%emt 0:06:46]} 11. e4 {[%emt 0:03:19]} dxe4 {[%emt 0:02:46]} 12. Bxe4 {[%emt 0:00:15]} Bc7 {[%emt 0:04:48]} 13. Bc2 {[%emt 0:06:47]} a5 {[%emt 0:04:19]} 14. O-O {[%emt 0:06:23]} Re8 {[%emt 0:06:46]} 15. Rfe1 {[%emt 0:02:54]} h6 {[%emt 0:01:53]} 16. Rad1 {[%emt 0:03:29]} Ra6 {[%emt 0:01:32]} 17. Qc4 {[%emt 0:05:30]} Rc6 {[%emt 0:05:53]} 18. Qxc5 {[%emt 0:14:09]} Rxc5 {[%emt 0:00:05]} 19. h3 {[%emt 0:00:07]} g6 {[%emt 0:04:12]} 20. a4 {[%emt 0:03:41]} b6 {[%emt 0:03:54]} 21. Bd3 {[%emt 0:00:48]} Bb7 {[%emt 0:01:13]} 22. Bb5 {[%emt 0:00:59]} Re7 {[%emt 0:00:19]} 23. Nc4 {[%emt 0:05:19]} Bxf3 {[%emt 0:12:19]} 24. gxf3 {[%emt 0:00:19]} Kf8 {[%emt 0:01:00]} 25. Re2 {[%emt 0:02:35]} Rd5 {[%emt 0:12:29]} 26. Rxd5 {[%emt 0:06:16]} Nxd5 {[%emt 0:00:03]} 27. Bxd7 {[%emt 0:00:10]} Rxd7 {[%emt 0:00:04]} 28. Nxe5 {[%emt 0:01:33]} Bxe5 {[%emt 0:02:06]} 29. Bxe5 {[%emt 0:00:32]} f6 {[%emt 0:00:17]} 30. Bd4 {[%emt 0:02:56]} Kf7 {[%emt 0:00:01]} 31. h4 {[%emt 0:01:23]} h5 {[%emt 0:00:20]} 32. Re1 {[%emt 0:06:06]} Rd6 {[%emt 0:00:47]} 33. Kh2 {[%emt 0:00:32]} Nf4 {[%emt 0:04:56]} 34. Rb1 {[%emt 0:02:02]} Nd3 {[%emt 0:01:12]} 35. Kg3 {[%emt 0:00:34]} Ke6 {[%emt 0:00:43]} 36. Be3 {[%emt 0:01:06]} Nc5 {[%emt 0:01:23]} 37. Ra1 {[%emt 0:00:40]} Nd3 {[%emt 0:00:28]} 38. b3 {[%emt 0:01:37]} Rc6 {[%emt 0:00:21]} 39. Bd4 {[%emt 0:00:46]} Kf5 {[%emt 0:00:35]} 40. Ra2 {[%emt 0:08:05]} g5 {[%emt 0:00:47]} 41. hxg5 {[%emt 0:31:17]} fxg5 {[%emt 0:11:01]} 42. Re2 {[%emt 0:00:00]} h4+ {[%emt 0:02:11]} 43. Kh2 {[%emt 0:00:00]} Nc5 {[%emt 0:05:41]} 44. Bxc5 {[%emt 0:00:00]} bxc5 {[%emt 0:02:58]} 45. Re4 {[%emt 0:00:00]} Rb6 {[%emt 0:03:12]} 46. Rc4 {[%emt 0:00:00]} Rxb3 {[%emt 0:00:03]} 47. Kg2 {[%emt 0:00:00]} Ra3 {[%emt 0:01:45]} 48. Rxc5+ {[%emt 0:00:00]} Kf4 {[%emt 0:01:08]} 49. Rxa5 {[%emt 0:00:00]} Rxc3 {[%emt 0:00:04]} 50. Ra8 {[%emt 0:00:00]} Ra3 {[%emt 0:02:25]} 51. a5 {[%emt 0:00:00]} Kf5 {[%emt 0:00:23]} 52. Ra6 {[%emt 0:00:30]} Ra2 {[%emt 0:01:00]} 53. Ra7 {[%emt 0:03:23]} Ra3 {[%emt 0:00:43]} 54. Ra8 {[%emt 0:01:35]} Kf6 {[%emt 0:01:28]} 55. Rf8+ {[%emt 0:02:20]} Kg6 {[%emt 0:00:13]} 56. Rg8+ {[%emt 0:00:05]} Kf6 {[%emt 0:00:19]} 57. Ra8 {[%emt 0:00:05]} Kf5 {[%emt 0:00:56]} 58. a6 {[%emt 0:00:10]} Kg6 {[%emt 0:00:26]} 59. Kg1 {[%emt 0:01:11]} Kg7 {[%emt 0:01:28]} 60. Ra7+ {[%emt 0:00:40]} Kg6 {[%emt 0:00:44]} 61. Kg2 {[%emt 0:00:58]} Kf6 {[%emt 0:00:35]} 62. Ra8 {[%emt 0:00:59]} Kg6 {[%emt 0:00:21]} 63. Kh2 {[%emt 0:00:22]} Kg7 {[%emt 0:00:33]} 64. a7 {[%emt 0:00:09]} Kh7 {[%emt 0:00:30]} 65. Kg1 {[%emt 0:01:17]} Kg7 {[%emt 0:00:23]} 66. Kg2 {[%emt 0:00:04]} Kh7 {[%emt 0:00:25]} 67. f4 {[%emt 0:00:08]} gxf4 {[%emt 0:01:13]} 68. Rf8 {[%emt 0:00:03]} h3+ {[%emt 0:00:37]} 69. Kh2 {[%emt 0:00:06]} Rxa7 {[%emt 0:00:03]} 70. Kxh3 {[%emt 0:00:34]} Kg6 {[%emt 0:00:20]} 71. Kg4 {[%emt 0:00:07]} Ra2 {[%emt 0:00:52]} 72. Rxf4 {[%emt 0:00:10]} Rc2 {[%emt 0:00:12]} 73. Rf8 {[%emt 0:00:18]} Kg7 {[%emt 0:00:23]} 74. Rf4 {[%emt 0:02:34]} Kg6 {[%emt 0:00:30]} 75. Kg3 {[%emt 0:00:04]} Rc3+ {[%emt 0:00:11]} 76. f3 {[%emt 0:00:07]} Kg5 {[%emt 0:00:28]} 77. Rg4+ {[%emt 0:00:12]} Kf5 {[%emt 0:00:04]} 78. Ra4 {[%emt 0:00:04]} Rc5 {[%emt 0:00:29]} 79. Ra8 {[%emt 0:00:06]} Rb5 {[%emt 0:01:09]} 80. Rh8 {[%emt 0:00:33]} Kg5 {[%emt 0:00:25]} 81. Re8 {[%emt 0:00:45]} Kf5 {[%emt 0:00:16]} 82. Ra8 {[%emt 0:01:31]} Kg5 {[%emt 0:00:10]} 83. Rf8 {[%emt 0:00:04]} Ra5 {[%emt 0:00:19]} 84. Rh8 {[%emt 0:00:26]} Rb5 {[%emt 0:01:12]} 85. f4+ {[%emt 0:01:34]} Kg6 {[%emt 0:00:06]} 86. Kg4 {[%emt 0:00:20]} Kf6 {[%emt 0:00:18]} 87. Rh6+ {[%emt 0:00:16]} Kg7 {[%emt 0:00:07]} 88. Rd6 {[%emt 0:00:06]} Kf7 {[%emt 0:00:03]} 89. Rc6 {[%emt 0:01:32]} Ra5 {[%emt 0:00:34]} 90. Rb6 {[%emt 0:00:10]} Rc5 {[%emt 0:00:03]} 91. f5 {[%emt 0:00:43]} Rc1 {[%emt 0:00:27]} 92. Rb7+ {[%emt 0:00:13]} Kf6 {[%emt 0:00:03]} 93. Rb6+ {[%emt 0:00:07]} Kf7 {[%emt 0:00:01]} 94. Rb7+ {[%emt 0:00:07]} Kf6 {[%emt 0:00:02]} 1/2-1/2

[Event "ETCC Open 2023"]
[Site "Budva"]
[Date "2023.11.14"]
[Round "4.45"]
[White "Paichadze, Luka"]
[Black "Navara, David"]
[Result "0-1"]
[ECO "B53"]
[WhiteElo "2501"]
[BlackElo "2695"]
[Annotator "TA"]
[PlyCount "86"]
[EventDate "2023.11.10"]
[EventType "team-tourn"]
[EventCountry "MNE"]
[SourceTitle "playchess.com"]
[Source "ChessBase"]
[SourceQuality "1"]
[WhiteTeam "Georgia"]
[BlackTeam "Czech Republic"]
[WhiteTeamCountry "GEO"]
[BlackTeamCountry "CZE"]
[TimeControl "40/5400+30:1800+30"]

{[%evp 23,86,5,18,0,0,0,0,0,0,0,0,0,0,-16,-8,-43,-46,-33,-50,-48,-37,-48,-27,-57,-56,-106,-60,-65,-83,-85,-86,-75,-69,-125,-119,-127,-125,-151,-125,-215,-214,-524,-518,-989,-977,-902,-955,-12832,-943,-927,-924,-895,-823,-1335,-1363,-1240,-1200,-1034,-973,-1168,-1124,-12840,-12840,-12842,-12843]} 1. e4 {[%emt 0:00:05]} c5 {[%emt 0:00:04]} 2. Nf3 {[%emt 0:00:24]} d6 {[%emt 0:00:05]} 3. d4 {[%emt 0:00:41]} cxd4 {[%emt 0:00:05]} 4. Qxd4 {[%emt 0:00:12]} Nf6 {[%emt 0:00:03]} 5. Bg5 {[%emt 0:01:18]} Nc6 {[%emt 0:00:14]} 6. Bb5 {[%emt 0:00:16]} Bd7 {[%emt 0:08:51]} 7. Qd3 {[%emt 0:02:05]} e6 {[%emt 0:00:15]} 8. Nc3 {[%emt 0:00:31]} a6 {[%emt 0:10:04]} 9. Bxc6 {[%emt 0:00:21]} Bxc6 {[%emt 0:00:06]} 10. Nd4 {[%emt 0:06:27]} Be7 {[%emt 0:01:05]} 11. O-O-O {[%emt 0:00:54]} Rc8 {[%emt 0:00:17]} 12. f4 {[%emt 0:01:39]} O-O {[%emt 0:16:22]} 13. h4 {[%emt 0:11:10] is the legacy move (13.Kb1). B53: Sicilian: 2...d6: Lines with Qxd4.} b5 {[%emt 0:04:14]} 14. e5 {[%emt 0:11:14]} dxe5 {[%emt 0:01:17]} 15. Nxc6 {[%emt 0:01:55] The position is equal.} Rxc6 {[%emt 0:00:15]} 16. fxe5 {[%emt 0:08:46]} Nd5 {[%emt 0:01:45] [#]} 17. Nxd5 $146 {[%emt 0:01:07]} ({Predecessor:} 17. Qg3 Nxc3 18. bxc3 Qc7 19. Bxe7 Qxe7 20. Rd6 Qc7 21. Rxc6 Qxc6 22. h5 h6 23. Rh4 {½-½ Saric,K (2173)-Cvitkovic,F (2113) Zadar op-B 2014 (9)}) 17... exd5 {[%emt 0:00:08]} 18. Kb1 {[%emt 0:02:20]} ({Of course not} 18. Qxd5 Bxg5+ 19. hxg5 Qxg5+ 20. Kb1 Re6 $15) 18... h6 {[%emt 0:02:52]} 19. Bf4 {[%emt 0:04:42]} (19. Qxd5 $2 {too greedy.} Qxd5 20. Rxd5 hxg5 $19) 19... Bxh4 {[%emt 0:05:46]} 20. Qf3 {[%emt 0:00:45]} Be7 {[%emt 0:00:31]} 21. Rxd5 {[%emt 0:00:52]} Qc8 {[%emt 0:00:15]} 22. Rd2 {[%emt 0:17:27]} b4 {[%emt 0:04:01]} (22... Rc4 {seems wilder.} 23. Rhd1 Qf5 24. Bh2 Qg6) 23. g4 {[%emt 0:03:25]} Rg6 {[%emt 0:01:25]} (23... a5 {keeps more tension.} 24. Rd4 Rxc2 25. g5 Rc4) 24. Rg2 {[%emt 0:01:34] [#]} (24. Rg1 $1 $15) 24... Qa8 {[%emt 0:13:28]} ({Black should try} 24... Rd8 $1 $17) 25. Qxa8 $15 {[%emt 0:00:31]} Rxa8 {[%emt 0:00:09][%cal Bf8a8,Ba8c8,Bc8c5][%mdl 32] White is now going downhill.} 26. Bd2 {[%emt 0:04:18]} Rc8 {[%emt 0:01:59]} 27. b3 {[%emt 0:01:24] Inhibits Rc4.} a5 {[%emt 0:01:04]} 28. Rh5 {[%emt 0:01:49]} ({Better is} 28. Re1 $15) 28... Rc5 $17 {[%emt 0:03:10]} 29. Rf5 {[%emt 0:07:13]} f6 {[%emt 0:09:32]} 30. Bf4 {[%emt 0:06:05]} Bd8 {[%emt 0:00:25]} 31. Rd2 {[%emt 0:01:15] [#]} (31. a4 $17 {was worth a try.}) 31... Bc7 $1 $19 {[%emt 0:00:09]} 32. e6 $2 {[%emt 0:03:01]} (32. c4 {is more resistant.} bxc3 33. Rg2) 32... Rxf5 {[%emt 0:00:27] Black is clearly winning.} 33. gxf5 {[%emt 0:00:38][%mdl 4096] Endgame KRB-KRB} (33. Bxc7 $142 Rxg4 34. Bxa5) 33... Rg1+ {[%emt 0:00:08]} (33... Bxf4 $2 34. Rd8+ Kh7 35. fxg6+ Kxg6 36. e7 $18) 34. Kb2 {[%emt 0:00:02]} Bxf4 {[%emt 0:00:10] KRB-KR} 35. Rd8+ {[%emt 0:00:08]} Kh7 {[%emt 0:00:05]} 36. c4 {[%emt 0:00:12]} bxc3+ {[%emt 0:01:08]} 37. Kxc3 {[%emt 0:00:02]} Re1 {[%emt 0:04:35]} 38. b4 {[%emt 0:00:19]} axb4+ {[%emt 0:02:03]} 39. Kxb4 {[%emt 0:00:02]} h5 {[%emt 0:00:11][%cal Bh6h5,Bh5h4][%mdl 32]} 40. a4 {[%emt 0:00:17]} h4 {[%emt 0:00:29] aiming for ...h3.} 41. Rd4 {[%emt 0:05:29]} Bg3 {[%emt 0:00:50] Threatens to win with ...h3.} 42. Rg4 {[%emt 0:00:27]} g5 {[%emt 0:01:07] ( -> ...Bd6+)} 43. Kb5 {[%emt 0:04:36]} Bf4 {[%emt 0:00:43] Weighted Error Value: White=0.84/Black=0.03 (flawless)} 0-1

[Event "ETCC Open 2023"]
[Site "Budva"]
[Date "2023.11.14"]
[Round "4.46"]
[White "Nguyen, Thai Dai Van"]
[Black "Mchedlishvili, Mikheil"]
[Result "1-0"]
[ECO "A13"]
[WhiteElo "2624"]
[BlackElo "2564"]
[Annotator "ChessBase"]
[PlyCount "105"]
[EventDate "2023.11.10"]
[EventType "team-tourn"]
[EventCountry "MNE"]
[SourceTitle "playchess.com"]
[Source "ChessBase"]
[SourceQuality "1"]
[WhiteTeam "Czech Republic"]
[BlackTeam "Georgia"]
[WhiteTeamCountry "CZE"]
[BlackTeamCountry "GEO"]
[TimeControl "40/5400+30:1800+30"]

1. c4 {[%emt 0:01:15]} e6 {[%emt 0:01:01]} 2. g3 {[%emt 0:00:07]} d5 {[%emt 0:00:54]} 3. Bg2 {[%emt 0:00:06]} d4 {[%emt 0:03:27]} 4. Nf3 {[%emt 0:00:18]} Nc6 {[%emt 0:00:46]} 5. O-O {[%emt 0:00:42]} Bc5 {[%emt 0:00:28]} 6. d3 {[%emt 0:00:09]} Nf6 {[%emt 0:01:40]} 7. Nbd2 {[%emt 0:00:28]} O-O {[%emt 0:01:25]} 8. Nb3 {[%emt 0:00:59]} Be7 {[%emt 0:00:30]} 9. h3 {[%emt 0:01:31]} e5 {[%emt 0:06:14]} 10. e3 {[%emt 0:00:09]} a5 {[%emt 0:03:53]} 11. exd4 {[%emt 0:04:29]} exd4 {[%emt 0:00:43]} 12. a4 {[%emt 0:00:13]} h6 {[%emt 0:06:36]} 13. Re1 {[%emt 0:19:34]} Be6 {[%emt 0:03:14]} 14. Bf4 {[%emt 0:20:02]} Bb4 {[%emt 0:13:14]} 15. Re2 {[%emt 0:03:43]} Qc8 {[%emt 0:08:23]} 16. Kh2 {[%emt 0:05:35]} Rd8 {[%emt 0:00:56]} 17. Ne5 {[%emt 0:03:48]} Ne7 {[%emt 0:06:07]} 18. Bd2 {[%emt 0:06:23]} c5 {[%emt 0:02:46]} 19. Bxb4 {[%emt 0:04:48]} axb4 {[%emt 0:00:28]} 20. a5 {[%emt 0:00:58]} Qc7 {[%emt 0:02:35]} 21. Qd2 {[%emt 0:00:33]} Rd6 {[%emt 0:03:41]} 22. Rae1 {[%emt 0:00:52]} Ra7 {[%emt 0:01:44]} 23. Qf4 {[%emt 0:01:38]} b6 {[%emt 0:05:16]} 24. axb6 {[%emt 0:02:50]} Rxb6 {[%emt 0:00:38]} 25. g4 {[%emt 0:01:55]} Nh7 {[%emt 0:10:58]} 26. Qg3 {[%emt 0:00:55]} g5 {[%emt 0:02:05]} 27. f4 {[%emt 0:08:09]} gxf4 {[%emt 0:01:30]} 28. Qxf4 {[%emt 0:00:01]} f6 {[%emt 0:00:42]} 29. Qg3 {[%emt 0:02:02]} Nf8 {[%emt 0:03:18]} 30. Nf3 {[%emt 0:00:36]} Neg6 {[%emt 0:00:40]} 31. Qxc7 {[%emt 0:01:05]} Rxc7 {[%emt 0:00:02]} 32. Kg3 {[%emt 0:00:15]} Ra6 {[%emt 0:02:41]} 33. h4 {[%emt 0:01:45]} Kf7 {[%emt 0:02:34]} 34. Rf1 {[%emt 0:03:29]} Kg7 {[%emt 0:00:16]} 35. Rfe1 {[%emt 0:00:03]} Kf7 {[%emt 0:00:02]} 36. Rf1 {[%emt 0:03:24]} Kg7 {[%emt 0:00:02]} 37. h5 {[%emt 0:00:55]} Ne7 {[%emt 0:01:18]} 38. Rfe1 {[%emt 0:00:01]} Kf7 {[%emt 0:00:26]} 39. Bh3 {[%emt 0:00:30]} Nc8 {[%emt 0:03:02]} 40. Nh4 {[%emt 0:02:20]} Ne7 {[%emt 0:01:00]} 41. Nf5 {[%emt 0:18:22]} Bxf5 {[%emt 0:07:27]} 42. gxf5 {[%emt 0:00:56]} Raa7 {[%emt 0:00:32]} 43. Kf4 {[%emt 0:01:00]} Nh7 {[%emt 0:00:44]} 44. Bg2 {[%emt 0:00:40]} Ng5 {[%emt 0:00:25]} 45. Bd5+ {[%emt 0:06:00]} Kf8 {[%emt 0:07:09]} 46. Nd2 {[%emt 0:00:16]} Ra2 {[%emt 0:11:44]} 47. Ne4 {[%emt 0:01:19]} Nxd5+ {[%emt 0:02:19]} 48. cxd5 {[%emt 0:00:02]} Nxe4 {[%emt 0:00:06]} 49. Kxe4 {[%emt 0:00:27]} Ke7 {[%emt 0:00:28]} 50. Kf4+ {[%emt 0:00:39]} Kd6 {[%emt 0:00:01]} 51. Re6+ {[%emt 0:00:48]} Kd7 {[%emt 0:01:12]} 52. Rxf6 {[%emt 0:01:16]} Rxb2 {[%emt 0:00:20]} 53. d6 {[%emt 0:00:21]} 1-0

[Event "ETCC Open 2023"]
[Site "Budva"]
[Date "2023.11.14"]
[Round "4.47"]
[White "Jobava, Baadur"]
[Black "Zilka, Stepan"]
[Result "1-0"]
[ECO "D00"]
[WhiteElo "2568"]
[BlackElo "2609"]
[Annotator "TA"]
[PlyCount "95"]
[EventDate "2023.11.10"]
[EventType "team-tourn"]
[EventCountry "MNE"]
[SourceTitle "playchess.com"]
[Source "ChessBase"]
[SourceQuality "1"]
[WhiteTeam "Georgia"]
[BlackTeam "Czech Republic"]
[WhiteTeamCountry "GEO"]
[BlackTeamCountry "CZE"]
[TimeControl "40/5400+30:1800+30"]

{[%evp 9,95,1,12,-3,-11,-6,18,-6,0,-22,0,8,20,21,23,20,26,17,24,23,21,23,11,0,21,8,41,31,28,11,16,8,6,18,20,16,10,4,13,0,0,0,6,0,12,0,28,27,23,14,31,29,27,0,0,0,0,0,142,131,148,148,148,148,148,148,157,144,147,0,406,399,400,391,558,548,539,529,527,518,670,673,823,762,849,839,786,775]} 1. d4 {[%emt 0:00:19]} d5 {[%emt 0:00:20]} 2. Bg5 {[%emt 0:00:17]} Nf6 {[%emt 0:02:03]} 3. e3 {[%emt 0:00:14]} Bf5 {[%emt 0:01:45]} 4. Bxf6 {[%emt 0:01:05]} exf6 {[%emt 0:00:34]} 5. Nd2 {[%emt 0:00:17]} c6 {[%emt 0:01:36]} 6. g3 {[%emt 0:00:41] D00: 1 d4 d5: Unusual lines.} Nd7 {[%emt 0:01:44]} 7. Bg2 {[%emt 0:00:48]} Bd6 {[%emt 0:01:35]} 8. Ne2 {[%emt 0:00:45] The position is equal.} h5 {[%emt 0:03:04]} 9. O-O {[%emt 0:00:33]} h4 {[%emt 0:00:28] [#]} 10. c4 $146 {[%emt 0:00:14]} ({Predecessor:} 10. e4 dxe4 11. Re1 Kf8 12. Nc3 Qc7 13. Ndxe4 Bb4 14. d5 Ne5 15. dxc6 bxc6 16. Qd4 {0-1 Ruecker,B (1876)-Bogoevski,J (2204) NRW Class1 1011 2010 (5.3)}) 10... hxg3 {[%emt 0:03:17]} 11. hxg3 {[%emt 0:00:15]} dxc4 {[%emt 0:00:40]} 12. Nxc4 {[%emt 0:00:10]} Nb6 {[%emt 0:00:46]} 13. e4 {[%emt 0:03:54] [#] And now Nxd6+ would win.} Bg4 {[%emt 0:13:37]} 14. Ne3 {[%emt 0:01:03]} Qd7 {[%emt 0:00:18]} 15. Nxg4 {[%emt 0:00:20]} (15. a4 {with more complications.} a5 16. Nxg4 Qxg4 17. Qb3) 15... Qxg4 {[%emt 0:00:05]} 16. Qc2 {[%emt 0:02:43]} O-O {[%emt 0:03:59]} 17. f4 {[%emt 0:02:09]} Rfd8 {[%emt 0:04:16]} 18. Bf3 {[%emt 0:09:32]} Qe6 {[%emt 0:00:22]} 19. Kf2 {[%emt 0:01:13]} Qc4 {[%emt 0:02:53]} 20. Rfc1 {[%emt 0:01:35]} Qxc2 {[%emt 0:00:42]} 21. Rxc2 {[%emt 0:00:05]} a5 {[%emt 0:00:25]} 22. Rd1 {[%emt 0:02:31]} a4 {[%emt 0:00:54]} 23. a3 {[%emt 0:00:42]} g6 {[%emt 0:02:25]} 24. Nc1 {[%emt 0:05:20][%cal Be2c1,Bc1d3,Bd3e5][%mdl 32]} Bb8 {[%emt 0:02:37]} 25. Ke3 {[%emt 0:02:34]} f5 {[%emt 0:02:47]} 26. exf5 {[%emt 0:01:30]} gxf5 {[%emt 0:00:22]} 27. Nd3 {[%emt 0:03:35]} Nd5+ {[%emt 0:01:20]} 28. Bxd5 {[%emt 0:00:48]} Rxd5 {[%emt 0:00:15]} 29. Rc5 {[%emt 0:01:18]} Bd6 {[%emt 0:08:38]} 30. Rxd5 {[%emt 0:00:06]} cxd5 $14 {[%emt 0:00:06][%mdl 4096] Endgame KRB-KRN} 31. Ne5 {[%emt 0:08:25]} Kg7 {[%emt 0:16:05]} 32. Rh1 {[%emt 0:14:37]} Re8 {[%emt 0:06:19] White must now prevent ...f6.} 33. Kd3 {[%emt 0:00:37]} Rg8 {[%emt 0:00:35] [#]} (33... Re6 $11) 34. Nd7 $1 $16 {[%emt 0:00:59]} f6 {[%emt 0:12:12]} 35. Nb6 {[%emt 0:03:31][%csl LRa4,LRd5] White is more active.} Kf7 {[%emt 0:01:24]} 36. Rh3 {[%emt 0:00:08]} ({Worse is} 36. Nxd5 Rxg3+ 37. Kc2 (37. Kc4 Rb3 $11) 37... Ke6 $15) 36... Ke6 {[%emt 0:00:27]} 37. Nxa4 {[%emt 0:06:49]} Rc8 {[%emt 0:00:19] Prevents Nc5+} 38. Rh1 {[%emt 0:03:22]} Rg8 {[%emt 0:01:26]} 39. Rh3 {[%emt 0:02:27]} (39. Re1+ $16 Kd7 40. Re3) 39... b5 $2 {[%emt 0:03:06][%mdl 8192]} (39... Rc8 $1 $11 {and Black stays safe.}) 40. Nc5+ $18 {[%emt 0:00:49]} Kf7 {[%emt 0:00:01]} 41. Kc3 {[%emt 0:36:22]} Re8 {[%emt 0:30:31]} (41... Kg6 $142 42. Kb4 Rb8) 42. Rh7+ {[%emt 0:00:33] White is clearly winning.} Kg6 {[%emt 0:00:08]} 43. Rd7 {[%emt 0:00:06]} Bf8 {[%emt 0:00:43]} 44. Rxd5 {[%emt 0:02:30]} Re3+ {[%emt 0:00:24]} 45. Kb4 {[%emt 0:00:34]} Rxg3 {[%emt 0:01:10]} 46. Kxb5 {[%emt 0:00:33]} Bh6 {[%emt 0:00:04]} 47. a4 {[%emt 0:00:20][%cal Ba3a4,Ba4a5][%mdl 32]} Bxf4 {[%emt 0:00:19]} 48. a5 {[%emt 0:00:09] Weighted Error Value: White=0.09 (flawless) /Black=0.37} 1-0